Cogmind - Beta 15 @@@ ROGUE MODE // 2025.05.17 @ 10:24:53 Player: Demo Result: Destroyed by as-88358 with Assembled F-torch Performance ------------- Evolutions (0) 0 Regions Visited (4) 800 Robots Destroyed (28) 140 Value Destroyed (467) 467 Prototype IDs (23) 460 Alien Tech Used (0) 0 Bonus (300) 300 TOTAL SCORE: 2167 Bonus ------- Aligned with FarCom 300 Cogmind --------- Core Integrity 0/250 Matter 300/300 Energy 97/100 System Corruption 0% Temperature Cool (60) Movement Rolling (135) Ox3 Location -9/Mines Parts ------- > --- POWER (1) -------- (None) > --- PROPULSION (2) --- Light Treads Armored Wheel > --- UTILITY (2) ------ High-capacity Storage Unit Structural Scanner > --- WEAPON (2) ------- Medium Laser Small Laser > --- INVENTORY (20) --- Light Treads Wheel Wheel Wheel Wheel Wheel Heat Sink Light Humpback Medium Matter Pod (100) High-capacity Matter Pod (200) Seismic Detector Medium Laser Small Laser Datajack Mining Laser Deploy-a-Sentry Peak State ------------ > --- POWER ------------ Light Ion Engine > --- PROPULSION ------- Wheel Armored Wheel > --- UTILITY ---------- High-capacity Storage Unit Light Armor Plating > --- WEAPON ----------- Medium Laser Small Laser > --- INVENTORY -------- Light Treads Light Treads Wheel Wheel Wheel Wheel Heat Sink Light Humpback Medium Matter Pod High-capacity Matter Pod Structural Scanner Seismic Detector Medium Laser Small Laser Datajack Mining Laser Deploy-a-Sentry Deploy-a-Sentry Deploy-a-Sentry [Rating: 11] Favorites ----------- Power Light Ion Engine Engine Light Ion Engine Propulsion Wheel Treads Light Treads Wheel Wheel Utility High-capacity Storage Unit Device Seismic Detector Storage High-capacity Storage Unit Protection Light Armor Plating Weapon Medium Laser Energy Gun Medium Laser Ballistic Gun Assault Rifle Special Weapon Mining Laser Build | -11 -10 -10 -10 -9 ------- Run | Yrd Mat Min Exi Min Slots Evolved . | . . . . . Power . | . . . . . Propulsion . | . . . . . Utility . | . . . . . Weapon . | . . . . . Parts Attached 27 | 6 7 11 2 1 Power 3 | . 1 2 . . Engine 3 | . 1 2 . . Core . | . . . . . Reactor . | . . . . . Propulsion 10 | 2 4 2 1 1 Treads 2 | . 2 . . . Leg . | . . . . . Wheel 8 | 2 2 2 1 1 Hover . | . . . . . Flight . | . . . . . Utility 9 | 2 2 4 1 . Device 2 | 1 . 1 . . Storage 4 | 1 2 . 1 . Processor . | . . . . . Hackware . | . . . . . Protection 3 | . . 3 . . Artifact . | . . . . . Weapon 5 | 2 . 3 . . Energy Gun 3 | 1 . 2 . . Energy Cannon . | . . . . . Ballistic Gun 1 | 1 . . . . Ballistic Cannon . | . . . . . Launcher . | . . . . . Special Weapon 1 | . . 1 . . Impact Weapon . | . . . . . Slashing Weapon . | . . . . . Piercing Weapon . | . . . . . Special Melee Weapon . | . . . . . Unidentified Prototypes . | . . . . . Parts Lost 10 | . . 8 . 2 Power 2 | . . 1 . 1 Propulsion 3 | . . 3 . . Utility 3 | . . 2 . 1 Weapon 2 | . . 2 . . Highest Loss Streak 6 | . . 6 . 2 To Critical Strikes . | . . . . . Average Backups 16 | 3 13 18 16 15 Power . | . . . . . Propulsion 6 | 3 7 7 6 6 Utility 6 | . 4 7 6 5 Weapon 1 | . . 1 3 3 Tool/Special . | . . . . . Unused Backups 19 | . 2 3 2 12 Power . | . . . . . Propulsion 7 | . 2 . 1 4 Utility 8 | . . 3 1 4 Weapon 3 | . . . . 3 Tool/Special 1 | . . . . 1 Average Slot Usage (%) 96 | . 97 94 100 97 Engine 12 | . 11 11 14 11 Treads 3 | . . 5 4 2 Wheel 23 | . 27 22 23 25 Device 5 | . 14 4 . 2 Storage 14 | . 14 14 14 14 Protection 8 | . . 9 14 11 Energy Gun 20 | . 14 18 28 28 Ballistic Gun 6 | . 14 7 . . Peak Build Rating 11 | 6 9 9 10 11 Average Rating 8 | 4 7 8 9 10 On Entrance 6 | . 6 9 8 10 Naked Turns . | . . . . . Heaviest Build 50 | 10 48 50 49 49 Greatest Support 26 | 26 26 20 20 22 Greatest Overweight (x) 4 | . 2 4 4 3 Average Overweight (x) 2 | . 1 3 2 2 Largest Inventory Capacity 20 | 8 20 20 20 20 Average Capacity 18 | 7 16 20 20 20 Most Carried 20 | 8 20 20 20 20 Average Carried 16 | 4 13 18 19 19 Final Capacity 20 | 8 20 20 20 20 Final Carried 20 | 8 20 19 20 17 Class Distribution -------------------- 52% | Scavenger-Mutant 47% | Mutant Dominant Class ---------------- Scavenger-Mutant | -10/Materials Mutant | -10/Mines Scavenger-Mutant | -10/Exiles Scavenger-Mutant | -9/Mines Resources | -11 -10 -10 -10 -9 ----------- Run | Yrd Mat Min Exi Min Matter Collected 1191 | 299 260 587 20 25 Remotely . | . . . . . Salvage Created 994 | 163 194 637 . . Parts 49 | 14 11 24 . . Haulers Intercepted 1 | . 1 . . . Recyclers Shooed 1 | . . 1 . . Parts Field Recycled . | . . . . . Retrieved Matter . | . . . . . Parts Self-Destructed . | . . . . . Prevented . | . . . . . Kills | -11 -10 -10 -10 -9 ------- Run | Yrd Mat Min Exi Min Combat Hostiles Destroyed 17 | . 2 14 . 1 Guns 15 | . 2 12 . 1 Classes Destroyed 7 | 2 3 2 . . Worker 3 | . 2 1 . . Tunneler 5 | 4 . 1 . . Hauler 1 | . 1 . . . Recycler 4 | 1 1 2 . . Swarmer 5 | . 2 3 . . Grunt 10 | . . 10 . . Assembled 2 | . . 1 . 1 Best Kill Streak 4 | 4 3 3 . 1 Combat Bots Only 3 | . 2 3 . 1 Max Kills in Single Turn 1 | 1 1 1 . 1 Gunslinging . | . . . . . Exploded . | . . . . . Melee . | . . . . . Uniques/NPCs Destroyed . | . . . . . Combat | -11 -10 -10 -10 -9 -------- Run | Yrd Mat Min Exi Min Hostile Shots Fired 136 | . 10 113 . 13 Missed 24 | . 1 21 . 2 Hits 112 | . 9 92 . 11 Projectile 112 | . 9 92 . 11 Critical Strikes 1 | . . . . 1 Damage Taken 1175 | . 74 960 . 141 Core 250 | . 26 189 . 35 Absorbed by Shields . | . . . . . Core Remaining (%) 100 | 100 . . . . Volleys Fired 109 | 13 10 83 . 3 Largest 2 | 2 2 2 . 2 Hottest 150 | 70 70 150 . 90 Shots Fired 179 | 25 20 128 . 6 Gun 176 | 25 20 125 . 6 Cannon . | . . . . . Launcher . | . . . . . Special 3 | . . 3 . . Kinetic 48 | 13 10 25 . . Thermal 131 | 12 10 103 . 6 Explosive . | . . . . . Electromagnetic . | . . . . . Robot Hit Streak 14 | 12 5 14 . 2 Robot Miss Streak 3 | 1 3 3 . 1 Penetration Max . | . . . . . Secondary Targets 2 | . . 2 . . Max Gunslinging Chain 1 | . . 1 . . Shots Hit Robots 109 | 15 11 80 . 3 Core Hits 45 | 6 7 31 . 1 Critical Kills . | . . . . . Critical Parts Destroyed . | . . . . . Critical Strikes 7 | . . 7 . . Burn 7 | . . 7 . . Melee Attacks . | . . . . . Impact . | . . . . . Slashing . | . . . . . Piercing . | . . . . . Sneak Attacks . | . . . . . Combat Hostiles . | . . . . . Follow-up Attacks . | . . . . . Damage Inflicted 1330 | 153 138 992 . 47 Guns 1330 | 153 138 992 . 47 Cannons . | . . . . . Explosions . | . . . . . Melee . | . . . . . Ramming . | . . . . . Kinetic 310 | 92 77 141 . . Thermal 1020 | 61 61 851 . 47 Explosive . | . . . . . Electromagnetic . | . . . . . Impact . | . . . . . Slashing . | . . . . . Piercing . | . . . . . Highest Corruption . | . . . . . Average Corruption . | . . . . . Corruption Purged . | . . . . . Corruption Blocked . | . . . . . Overload Shots . | . . . . . Overflow Damage . | . . . . . Projectiles . | . . . . . Explosions . | . . . . . Melee . | . . . . . Knockbacks . | . . . . . Impact . | . . . . . Kinetic . | . . . . . Secondary . | . . . . . Self-Inflicted Damage . | . . . . . Shots . | . . . . . Rammed . | . . . . . Targets Rammed . | . . . . . Kicked . | . . . . . Crushed . | . . . . . Highest Temperature 400 | 8 18 400 . 39 Average Temperature 121 | 5 7 132 . 19 Received Heat Transfer 470 | . . 390 . 80 Effects 6 | . . 6 . . Shutdowns 2 | . . 2 . . Energy Bleed 1 | . . 1 . . Matter Decay 2 | . . 2 . . Short Circuit 1 | . . 1 . . Siege Activations . | . . . . . Martial Activations . | . . . . . Shielding Activations . | . . . . . Robots Disrupted . | . . . . . Combat Hostiles . | . . . . . Robots Corrupted . | . . . . . Combat Hostiles . | . . . . . Parts Fried . | . . . . . Impact Corruptions . | . . . . . Robots Melted 2 | . . 2 . . Combat Hostiles 2 | . . 2 . . Parts Melted 11 | . 1 10 . . Heat Transferred 3469 | 185 185 2987 . 112 Parts Sabotaged . | . . . . . Parts Stolen . | . . . . . Parts Stripped . | . . . . . Power Chain Reactions . | . . . . . Alert | -11 -10 -10 -10 -9 ------- Run | Yrd Mat Min Exi Min Maximum Alert Level . | . . . . . Low Security (%) 100 | 100 100 100 . 100 Level 1 . | . . . . . Level 2 . | . . . . . Level 3 . | . . . . . Level 4 . | . . . . . Level 5 . | . . . . . High Security . | . . . . . Max Security . | . . . . . Peak Influence 65 | 10 65 65 . . Initial 5 | . . 5 . . Average 16 | 1 12 20 . . Influence Increases 457 | 25 106 326 . . Destroy 0b10 Robot/C 300 | . 40 260 . . Destroy 0b10 Robot/NC 75 | 25 20 30 . . Destroy Leader 32 | . 12 20 . . Successful Hack 4 | . 4 . . . Destroy Structure 1 | . . 1 . . Lose Combat Pursuer 45 | . 30 15 . . Influence Decreases 457 | 25 91 341 . . Entered New Map 10 | . . 10 . . Time Decay 402 | 25 91 286 . . Lost Part 45 | . . 45 . . Squads Dispatched 1 | . 1 . . . Investigation 1 | . 1 . . . Extermination . | . . . . . Reinforcement . | . . . . . Assault . | . . . . . Garrison . | . . . . . Intercept . | . . . . . Searches Triggered . | . . . . . Construction Impeded . | . . . . . Haulers Reinforced . | . . . . . Active Scanning Responses . | . . . . . Cargo Convoy Interrupts . | . . . . . Stealth | -11 -10 -10 -10 -9 --------- Run | Yrd Mat Min Exi Min Distress Signals 1 | . 1 . . . Communications Jammed . | . . . . . Distress Signals . | . . . . . Times Spotted 42 | . 7 15 . 20 Peak Tracking Total 13 | . 4 3 . 13 Tactical Retreats 4 | . 2 2 . . Traps | -11 -10 -10 -10 -9 ------- Run | Yrd Mat Min Exi Min Traps Triggered 1 | . 1 . . . Indirectly . | . . . . . Trap Hack Attempts . | . . . . . Triggered . | . . . . . Disarmed . | . . . . . Reprogrammed . | . . . . . Reused . | . . . . . Traps Extracted . | . . . . . Installed . | . . . . . Triggered . | . . . . . Machines | -11 -10 -10 -10 -9 ---------- Run | Yrd Mat Min Exi Min Machines Disabled . | . . . . . Max in Single Turn . | . . . . . Machines Repaired . | . . . . . Machines Dismantled . | . . . . . Machines Sabotaged . | . . . . . Overloaded Fab Kills . | . . . . . Hacking | -11 -10 -10 -10 -9 --------- Run | Yrd Mat Min Exi Min Machines Accessed 7 | . 5 . 2 . Terminals 4 | . 4 . . . Fabricators . | . . . . . Repair Stations . | . . . . . Recycling Units 1 | . 1 . . . Scanalyzers . | . . . . . Garrison Access . | . . . . . Total Hacks 15 | . 12 . 3 . Successful 6 | . 3 . 3 . Failed 9 | . 9 . . . Catastrophic 2 | . 2 . . . Database Lockouts . | . . . . . Manual 5 | . 4 . 1 . Terminals 9 | . 9 . . . Fabricators . | . . . . . Repair Stations . | . . . . . Recycling Units 3 | . 3 . . . Scanalyzers . | . . . . . Garrison Access . | . . . . . Terminal Hacks 5 | . 2 . 3 . Record 2 | . . . 2 . Locate Traps 2 | . 2 . . . Proto ID Catalog 1 | . . . 1 . Fabricator Hacks . | . . . . . Repair Station Hacks . | . . . . . Recycling Unit Hacks 1 | . 1 . . . Retrieve Components 1 | . 1 . . . Scanalyzer . | . . . . . Garrison Access Hacks . | . . . . . Unauthorized Hacks . | . . . . . Terminals . | . . . . . Fabricators . | . . . . . Repair Stations . | . . . . . Recycling Units . | . . . . . Scanalyzers . | . . . . . Garrison Access . | . . . . . Data Cores Recovered . | . . . . . Used . | . . . . . Hacking Detections 3 | . 3 . . . Full Trace Events 1 | . 1 . . . Feedback Events . | . . . . . Feedback Blocked . | . . . . . Robot Schematics Acquired . | . . . . . Robots Built . | . . . . . Authchips . | . . . . . Time . | . . . . . Total Robot Build Rating . | . . . . . Part Schematics Acquired . | . . . . . Parts Built . | . . . . . Authchips . | . . . . . Time . | . . . . . Total Part Build Rating . | . . . . . Parts Repaired . | . . . . . Time . | . . . . . Parts Recycled . | . . . . . Recycled Matter . | . . . . . Retrieved Matter . | . . . . . Retrieved Components . | . . . . . Parts Scanalyzed . | . . . . . Part Schematics Acquired . | . . . . . Parts Damaged . | . . . . . Bothacking | -11 -10 -10 -10 -9 ------------ Run | Yrd Mat Min Exi Min Used RIF Installer . | . . . . . Robots Hacked . | . . . . . Non-combat . | . . . . . Combat . | . . . . . Robot Hacks Applied . | . . . . . Relay Couplers Released . | . . . . . Fabnet Peak Effective % . | . . . . . Robots Rewired . | . . . . . Allies Hacked . | . . . . . Hacks Repelled . | . . . . . Allies | -11 -10 -10 -10 -9 -------- Run | Yrd Mat Min Exi Min Total Allies . | . . . . . Largest Group . | . . . . . Highest-Rated Group . | . . . . . Highest-Rated Ally . | . . . . . Total Orders . | . . . . . Ally Attacks 8 | . . . . 8 Total Damage 434 | . . . . 434 Kills 5 | . . . . 5 Allies Corrupted . | . . . . . Allies Melted . | . . . . . Turrets Deployed 1 | . . . . 1 Intel | -11 -10 -10 -10 -9 ------- Run | Yrd Mat Min Exi Min Active Infowar (turns) 765 | 26 469 266 . 4 Structural 7 | . . 3 . 4 Seismic 758 | 26 469 263 . . Robot Analysis Total . | . . . . . Derelict Logs Recovered . | . . . . . Drone Launches . | . . . . . Drone Recoveries . | . . . . . Exploration | -11 -10 -10 -10 -9 ------------- Run | Yrd Mat Min Exi Min Turns Passed 2179 | 132 469 935 604 39 Spaces Moved 1257 | 68 391 276 509 13 Core 3 | 3 . . . . Treads . | . . . . . Legs . | . . . . . Wheels 1254 | 65 391 276 509 13 Hover . | . . . . . Flight . | . . . . . Fastest Speed 50 | 50 80 110 110 110 Average Speed 112 | 88 100 127 117 115 Slowest Speed 140 | 90 110 140 140 135 Overloaded Moves . | . . . . . Propulsion Burnouts . | . . . . . Robots Hopped . | . . . . . Potential Cave-ins . | . . . . . Cave-ins Triggered . | . . . . . Exploration Rate (%) 36 | 4 60 24 90 4 Regions Visited 4 Branch Regions 3 Pre-discovered Areas 1 | . . . 1 . Known Exits Taken . | . . . . . Unknown Exits Taken 4 | 1 1 1 1 . Scrap Searched 1 | . . . . 1 Spaces Dug . | . . . . . Terrain Destroyed 1 | . . 1 . . Melee . | . . . . . Projectile 1 | . . 1 . . AOE . | . . . . . Terrain Rammed . | . . . . . Walls Destroyed . | . . . . . Machines Disabled . | . . . . . Actions | -11 -10 -10 -10 -9 --------- Run | Yrd Mat Min Exi Min Total 1831 | 111 446 724 518 32 Wait 371 | 17 12 332 . 10 Move 1253 | 67 390 275 508 13 Hop . | . . . . . Pick Up 39 | 8 18 9 4 . Fast Attach 8 | 6 1 1 . . Attach 9 | . . 8 . 1 Detach . | . . . . . Swap 22 | . 7 11 2 2 Drop 20 | . 8 5 4 3 Fire 109 | 13 10 83 . 3 Melee . | . . . . . Ram . | . . . . . Kick . | . . . . . Crush . | . . . . . Escape Stasis . | . . . . . Rewire . | . . . . . Trap . | . . . . . Miscellaneous . | . . . . . Route ------- -11/Scrapyard -10/Materials (discovered 3 exits: [*Mat x2] / [*Min]) -10/Mines (discovered 2 exits: [*Mat] / *Exi) -10/Exiles -9/Mines History --------- Turn | Location | Event 16 | -11/Scrapyard | Discovered new exit (range 15) 133 | -11/Scrapyard | Entered Materials 273 | -10/Materials | Discovered new exit (range 7) 461 | -10/Materials | Discovered new exit (range 12) 494 | -10/Materials | Build established: Scavenger-Mutant 516 | -10/Materials | Discovered new exit (range 15) 602 | -10/Materials | Entered Mines 651 | -10/Mines | Discovered new exit (range 15) 784 | -10/Mines | Excavation squad dispatched 784 | -10/Mines | A large section of the Mines collapsed 1034 | -10/Mines | Excavation squad dispatched 1190 | -10/Mines | Lost 6 parts (1p2n1u2w) 1227 | -10/Mines | Core integrity fell below 50% 1303 | -10/Mines | Core integrity fell below 20% 1386 | -10/Mines | Build established: Mutant 1452 | -10/Mines | Deemed a non-threat by the Exiles lab entrance 1453 | -10/Mines | Discovered new exit (range 5) 1537 | -10/Mines | Entered Exiles 1571 | -10/Exiles | Met 8R-AWN 1596 | -10/Exiles | Met EX-HEX 1637 | -10/Exiles | Met EX-BIN 1656 | -10/Exiles | Aligned with FarCom system 1658 | -10/Exiles | Given EX-Vault access code 1696 | -10/Exiles | Opened EX-Vault 1711 | -10/Exiles | Found Deploy-a-Sentry 1713 | -10/Exiles | Found Deploy-a-Sentry 1715 | -10/Exiles | Found Deploy-a-Sentry 1737 | -10/Exiles | Warned to stay clear of 0b10 Research branches 1768 | -10/Exiles | Met EX-DEC 1776 | -10/Exiles | Learned location of Zion (-7) 1826 | -10/Exiles | Discovered new exit (range 12) 1902 | -10/Exiles | Visited The Gauntlet 1996 | -10/Exiles | Build established: Scavenger-Mutant 2141 | -10/Exiles | Left Exiles lab with Deploy-a-Sentry 2141 | -10/Exiles | Entered Mines 2142 | -9/Mines | Assembled infested the area 2165 | -9/Mines | DAS Turret deployed 2180 | -9/Mines | Destroyed by as-88358 with Assembled F-torch Last Messages --------------- 02161_ as-42673 destroyed. 02164_ Dropped Deploy-a-Sentry. 02165_ DAS Turret deployed. 02166_ Destroyed Asb. Hover Unit. 02166_ as-34560 suffers critical hit (Blast). 02166_ as-34560 destroyed. 02168_ Destroyed Asb. Hover Unit. 02170_ as-33187 destroyed. 02170_ as-27476 destroyed. 02172_ as-27662 destroyed. 02173_ Lgt. Armor Plating destroyed. 02174_ as-84919 destroyed. 02175_ Lgt. Ion Engine destroyed. 02176_ as-40837 knocked back. 02177_ DAS Turret knocked back. 02178_ as-58502 destroyed. 02179_ Acquired 15 matter. 02180_ as-40837 knocked back. 02180_ Dropped Deploy-a-Sentry. 02180_ Critical hit (Burn: +80). Map ----- +----------------------------------------------------+ | ????????????????????????????????????????????????? | | ????????????????????????????????????????????????? | | ????????????????????????????????????????????????? | | ????????????????????????????????????????????????? | | ????????????????????????????????????????????????? | | ????????????????????????????????????????????????? | | ????????????????????????????????????????????????? | | ????????????????????????????????????????????????? | | ????????????????????????????????????????????????? | | ????????????????????????????????????????????????? | | ????????????????????????????????????????????????? | | ????????????????????????????????????????????????? | | ????????????????????????????????????????????????? | | ????????????????????????????????????????????????? | | ????????????????????????????????????????????????? | | ????????????????????????????????????????????????? | | ????????????????????????????????????????????????? | | ????????????????????????????????????????????????? | | ????????????????????????????????????????????????? | | ????????????????????????????????????????????????? | | ????????????????????????????????????????????????? | | ????????????????????????????????????????????????? | | ????????????????????????????????????????????????? | | ?????????????????????########???????????????????? | | ?????????????????????########???????????????????? | | ????????????????????###[@= ###??????????????????? | | ??????????????????#### !&[ ##??????????????????? | | ??????????????????# a t ##??????????????????? | | ???????????????### aa% ###??????????????????? | | ???????????????## % %######??????????????????? | | ??????????????% aa ######???????????????????? | | ???????????##=** #####???????????????????????? | | ???????????## =%! a ####????????????????????????? | | ???????????# aaa ????????????????????????????? | | ???????????# % ?????????????????????????????? | | ??????????# ?????????????????????????????? | | ??????????## ?????????????????????????????? | | ???????????## #??????????????????????????????? | | ????????????### ???????????????????????????????? | | ??????????????##????????????????????????????????? | | ????????????????????????????????????????????????? | | ????????????????????????????????????????????????? | | ????????????????????????????????????????????????? | | ????????????????????????????????????????????????? | | ????????????????????????????????????????????????? | | ????????????????????????????????????????????????? | | ????????????????????????????????????????????????? | | ????????????????????????????????????????????????? | | ????????????????????????????????????????????????? | | ????????????????????????????????????????????????? | +----------------------------------------------------+ Best States ------------- Heat Dissipation 25 Energy Generation 10 Energy Capacity 125 Matter Stores 300 Matter Capacity 300 Sight Range 16 Terrain Scan Density 10 Armor Coverage 150 Evasion (%) 44 Recoil Reduction 2 Item Schematics ----------------- None Robot Schematics ------------------ None Fabricated ------------ Nothing Repaired ---------- Nothing Alien Tech Used ----------------- None Achievements -------------- None Challenges ------------ None Game ------ Seed LargeNullAccelerator Manual? 0 Play Time 00:13:45 Cumulative 171.1 hours Start 2025.05.17 @ 10:11:23 End 2025.05.17 @ 10:24:53 Sessions 1 Manual Loads 0 Difficulty Rogue Special Mode None Game No. 195 Rogue 195 Adventurer 0 Explorer 0 Win Type - Total 1 Types 1/0/0/0/0/0/0/0/0/0 Lore% 69 Gallery% 68 Achievement% 61 Wizard Run 0 Options --------- Layout 1 ASCII 0 Keyboard 0 Movement Numpad Keybinds 0 Fullscreen 1 Font 24/Smallcaps Map View 50x35 Zoom Use 0% Tactical HUD 1 Map Filters NONE Filters NONE Steam 1 RUN: 88f94ed2-059a-409c-a8ee-45194f2a42d4